Cogmind - Beta 10.2 @@@ ROGUE MODE // 2021.12.09 @ 17:22:07 Player: Happytimes Result: Self-destructed Performance ------------- Evolutions (0) 0 Regions Visited (4) 800 Robots Destroyed (9) 45 Value Destroyed (242) 242 Prototype IDs (6) 120 Alien Tech Used (0) 0 Bonus (395) 395 TOTAL SCORE: 1602 Bonus ------- Follower Combat Kills 95 Aligned with FarCom 300 Cogmind --------- Core Integrity 163/250 Matter 237/300 Energy 160/160 System Corruption 0% Temperature Cool (0) Movement Walking (120) Location -9/Mines Parts ------- > --- POWER (1) -------- Light Nuclear Core > --- PROPULSION (2) --- Aluminum Leg Aluminum Leg > --- UTILITY (2) ------ Medium Storage Unit Experimental Sensor Array > --- WEAPON (2) ------- Medium Laser Assault Rifle > --- INVENTORY (8) ---- Flight Unit Flight Unit Flight Unit Heat Sink Weight Redist. System Supersonic Drone Bay (0/1) Plasma Flamer Hammer Peak State ------------ > --- POWER ------------ Light Nuclear Core > --- PROPULSION ------- Aluminum Leg Aluminum Leg > --- UTILITY ---------- Medium Storage Unit Superbattery > --- WEAPON ----------- Medium Laser Assault Rifle > --- INVENTORY -------- Flight Unit Flight Unit Flight Unit Small Storage Unit Experimental Sensor Array Plasma Flamer Hammer Hammer [Rating: 19] Favorites ----------- Power Ion Engine Engine Ion Engine Power Core Light Nuclear Core Propulsion Aluminum Leg Leg Aluminum Leg Utility Medium Storage Unit Device Heat Sink Storage Medium Storage Unit Weapon Medium Laser Energy Gun Medium Laser Ballistic Gun Assault Rifle Special Weapon Field Lobotomy Kit Build | -11 -10 -10 -10 -9 ------- Run | Scr Mat Min Exi Min Slots Evolved . | . . . . . Power . | . . . . . Propulsion . | . . . . . Utility . | . . . . . Weapon . | . . . . . Parts Attached 24 | 6 3 7 7 1 Power 2 | 1 . 1 . . Engine 1 | 1 . . . . Core 1 | . . 1 . . Reactor . | . . . . . Propulsion 4 | 2 . 2 . . Treads . | . . . . . Leg 4 | 2 . 2 . . Wheel . | . . . . . Hover . | . . . . . Flight . | . . . . . Utility 10 | 1 1 2 5 1 Device 7 | . . 2 4 1 Storage 3 | 1 1 . 1 . Processor . | . . . . . Hackware . | . . . . . Protection . | . . . . . Artifact . | . . . . . Weapon 8 | 2 2 2 2 . Energy Gun 5 | 1 2 1 1 . Energy Cannon . | . . . . . Ballistic Gun 2 | 1 . 1 . . Ballistic Cannon . | . . . . . Launcher . | . . . . . Special Weapon 1 | . . . 1 . Impact Weapon . | . . . . . Slashing Weapon . | . . . . . Piercing Weapon . | . . . . . Special Melee Weapon . | . . . . . Unidentified Prototypes 4 | . . . 4 . Parts Lost . | . . . . . Power . | . . . . . Propulsion . | . . . . . Utility . | . . . . . Weapon . | . . . . . Highest Loss Streak . | . . . . . Average Slot Usage (%) 97 | . 92 100 98 100 Engine 7 | . 14 8 . . Core 6 | . . 5 14 14 Leg 28 | . 28 28 28 28 Device 8 | . . 11 12 14 Storage 17 | . 21 16 14 14 Energy Gun 21 | . 24 23 13 14 Ballistic Gun 6 | . 3 4 14 14 Naked Turns . | . . . . . Heaviest Build 21 | 12 21 21 18 18 Greatest Support 20 | 20 20 20 20 20 Greatest Overweight (x) 1 | . 1 1 . . Average Overweight (x) . | . . . . . Largest Inventory Capacity 10 | 6 10 10 8 8 Average Capacity 8 | 5 8 8 8 8 Most Carried 9 | 4 8 9 8 8 Average Carried 6 | 1 5 7 7 7 Final Capacity 10 | 6 10 8 8 8 Final Carried 8 | . 8 8 8 8 Class Distribution -------------------- 84% | Mutant 11% | Scavenger-Mutant 4% | Skirmisher Dominant Class ---------------- Mutant | -10/Materials Mutant | -10/Mines Mutant | -10/Exiles Skirmisher | -9/Mines Resources | -11 -10 -10 -10 -9 ----------- Run | Scr Mat Min Exi Min Matter Collected 401 | 235 64 85 . 17 Remotely . | . . . . . Salvage Created 270 | . 138 132 . . Parts 14 | . 13 1 . . Haulers Intercepted . | . . . . . Recyclers Shooed 1 | . 1 . . . Parts Field Recycled . | . . . . . Retrieved Matter . | . . . . . Parts Self-Destructed . | . . . . . Prevented . | . . . . . Kills | -11 -10 -10 -10 -9 ------- Run | Scr Mat Min Exi Min Combat Hostiles Destroyed 8 | . 5 3 . . Guns 7 | . 5 2 . . Classes Destroyed 3 | . 3 . . . Watcher 1 | . 1 . . . Swarmer 3 | . 3 . . . Grunt 5 | . 2 3 . . Best Kill Streak 3 | . 3 2 . . Combat Bots Only 3 | . 3 2 . . Max Kills in Single Turn 2 | . 2 1 . . Gunslinging 1 | . 1 . . . Exploded . | . . . . . Melee . | . . . . . Uniques/NPCs Destroyed . | . . . . . Combat | -11 -10 -10 -10 -9 -------- Run | Scr Mat Min Exi Min Damage Taken 316 | . 157 159 . . Core 87 | . 46 41 . . Absorbed by Shields . | . . . . . Core Remaining (%) 100 | 100 . . . . Volleys Fired 31 | . 15 16 . . Largest 2 | . 2 2 . . Hottest 100 | . 100 100 . . Shots Fired 62 | . 30 32 . . Gun 62 | . 30 32 . . Cannon . | . . . . . Launcher . | . . . . . Special . | . . . . . Kinetic 8 | . 3 5 . . Thermal 54 | . 27 27 . . Explosive . | . . . . . Electromagnetic . | . . . . . Robot Hit Streak 8 | . 5 8 . . Robot Miss Streak 3 | . 3 2 . . Penetration Max . | . . . . . Secondary Targets 2 | . 2 . . . Max Gunslinging Chain 1 | . 1 . . . Shots Hit Robots 41 | . 17 24 . . Core Hits 18 | . 10 8 . . Critical Hits . | . . . . . Critical Kills . | . . . . . Critical Parts Destroyed . | . . . . . Melee Attacks . | . . . . . Impact . | . . . . . Slashing . | . . . . . Piercing . | . . . . . Sneak Attacks . | . . . . . Combat Hostiles . | . . . . . Follow-up Attacks . | . . . . . Damage Inflicted 499 | . 213 286 . . Guns 499 | . 213 286 . . Cannons . | . . . . . Explosions . | . . . . . Melee . | . . . . . Ramming . | . . . . . Kinetic 50 | . 12 38 . . Thermal 449 | . 201 248 . . Explosive . | . . . . . Electromagnetic . | . . . . . Impact . | . . . . . Slashing . | . . . . . Piercing . | . . . . . Highest Corruption . | . . . . . Average Corruption . | . . . . . Corruption Purged . | . . . . . Overload Shots . | . . . . . Overflow Damage . | . . . . . Projectiles . | . . . . . Explosions . | . . . . . Melee . | . . . . . Knockbacks . | . . . . . Impact . | . . . . . Kinetic . | . . . . . Secondary . | . . . . . Self-Inflicted Damage . | . . . . . Shots . | . . . . . Rammed . | . . . . . Targets Rammed . | . . . . . Kicked . | . . . . . Crushed . | . . . . . Highest Temperature 303 | . 303 129 . . Average Temperature 79 | . 94 53 . . Received Heat Transfer 159 | . 69 90 . . Siege Activations . | . . . . . Robots Corrupted . | . . . . . Combat Hostiles . | . . . . . Parts Fried . | . . . . . Impact Corruptions . | . . . . . Robots Melted 1 | . . 1 . . Combat Hostiles 1 | . . 1 . . Parts Melted 3 | . 1 2 . . Heat Transferred 1332 | . 592 740 . . Parts Sabotaged . | . . . . . Parts Stolen . | . . . . . Parts Stripped . | . . . . . Power Chain Reactions . | . . . . . Missiles Intercepted . | . . . . . Alert | -11 -10 -10 -10 -9 ------- Run | Scr Mat Min Exi Min Peak Influence 130 | . 130 69 . . Initial 19 | . . 19 . . Average 36 | . 59 33 . . Maximum Alert Level . | . . . . . Low Security (%) 100 | 100 100 100 . 100 Level 1 . | . . . . . Level 2 . | . . . . . Level 3 . | . . . . . Level 4 . | . . . . . Level 5 . | . . . . . High Security . | . . . . . Max Security . | . . . . . Squads Dispatched . | . . . . . Investigation . | . . . . . Extermination . | . . . . . Reinforcement . | . . . . . Assault . | . . . . . Garrison . | . . . . . Intercept . | . . . . . Construction Impeded . | . . . . . Haulers Reinforced . | . . . . . Stealth | -11 -10 -10 -10 -9 --------- Run | Scr Mat Min Exi Min Distress Signals 1 | . 1 . . . Communications Jammed . | . . . . . Distress Signals . | . . . . . Times Spotted 13 | . 7 6 . . Peak Tracking Total 4 | . 4 2 . . Tactical Retreats 1 | . 1 . . . Traps | -11 -10 -10 -10 -9 ------- Run | Scr Mat Min Exi Min Traps Triggered . | . . . . . Indirectly . | . . . . . Trap Hack Attempts . | . . . . . Triggered . | . . . . . Disarmed . | . . . . . Reprogrammed . | . . . . . Reused . | . . . . . Traps Extracted . | . . . . . Installed . | . . . . . Triggered . | . . . . . Machines | -11 -10 -10 -10 -9 ---------- Run | Scr Mat Min Exi Min Machines Disabled 3 | . 3 . . . Max in Single Turn 1 | . 1 . . . Machines Sabotaged . | . . . . . Garrisons Compromised . | . . . . . Overloaded Fab Kills . | . . . . . Fab Network Shutdowns . | . . . . . Hacking | -11 -10 -10 -10 -9 --------- Run | Scr Mat Min Exi Min Machines Accessed 2 | . 1 1 . . Terminals 2 | . 1 1 . . Fabricators . | . . . . . Repair Stations . | . . . . . Recycling Units . | . . . . . Scanalyzers . | . . . . . Garrison Access . | . . . . . Total Hacks 10 | . 6 4 . . Successful 7 | . 5 2 . . Failed 3 | . 1 2 . . Catastrophic . | . . . . . Database Lockouts . | . . . . . Manual 1 | . . . 1 . Terminals 10 | . 6 4 . . Fabricators . | . . . . . Repair Stations . | . . . . . Recycling Units . | . . . . . Scanalyzers . | . . . . . Garrison Access . | . . . . . Terminal Hacks 7 | . 5 2 . . Robot Analysis 2 | . 2 . . . Prototype ID Bank 1 | . 1 . . . Locate Traps 1 | . 1 . . . Dispatch Records 1 | . 1 . . . Investigation Status 1 | . . 1 . . Zone Layout 1 | . . 1 . . Fabricator Hacks . | . . . . . Repair Station Hacks . | . . . . . Recycling Unit Hacks . | . . . . . Scanalyzer . | . . . . . Garrison Access Hacks . | . . . . . Unauthorized Hacks . | . . . . . Terminals . | . . . . . Fabricators . | . . . . . Repair Stations . | . . . . . Recycling Units . | . . . . . Scanalyzers . | . . . . . Garrison Access . | . . . . . Data Cores Recovered . | . . . . . Used . | . . . . . Hacking Detections . | . . . . . Full Trace Events . | . . . . . Feedback Events . | . . . . . Feedback Blocked . | . . . . . Robot Schematics Acquired . | . . . . . Robots Built . | . . . . . Matter . | . . . . . Time . | . . . . . Total Robot Build Rating . | . . . . . Part Schematics Acquired . | . . . . . Parts Built . | . . . . . Matter . | . . . . . Time . | . . . . . Total Part Build Rating . | . . . . . Parts Repaired . | . . . . . Time . | . . . . . Parts Recycled . | . . . . . Recycled Matter . | . . . . . Retrieved Matter . | . . . . . Retrieved Components . | . . . . . Parts Scanalyzed . | . . . . . Part Schematics Acquired . | . . . . . Parts Damaged . | . . . . . Bothacking | -11 -10 -10 -10 -9 ------------ Run | Scr Mat Min Exi Min Used RIF Installer . | . . . . . Robots Hacked . | . . . . . Non-combat . | . . . . . Combat . | . . . . . Robot Hacks Applied . | . . . . . Relay Couplers Released . | . . . . . Robots Rewired . | . . . . . Allies Hacked . | . . . . . Hacks Repelled . | . . . . . Allies | -11 -10 -10 -10 -9 -------- Run | Scr Mat Min Exi Min Total Allies 5 | . . 2 . 3 Largest Group 3 | . . 2 . 3 Highest-Rated Group 62 | . . 62 . 40 Highest-Rated Ally 31 | . . 31 . 16 Total Orders 1 | . . . . 1 EXPLORE 1 | . . . . 1 Ally Attacks 12 | . . 12 . . Total Damage 206 | . . 206 . . Kills 3 | . . 3 . . Allies Corrupted . | . . . . . Allies Melted . | . . . . . Intel | -11 -10 -10 -10 -9 ------- Run | Scr Mat Min Exi Min Robot Analysis Total 2 | . 2 . . . Derelict Logs Recovered 3 | . . 2 . 1 Drone Launches 1 | . . . . 1 Drone Recoveries . | . . . . . Exploration | -11 -10 -10 -10 -9 ------------- Run | Scr Mat Min Exi Min Turns Passed 1881 | 61 458 890 331 141 Spaces Moved 1289 | 54 279 596 250 110 Core 31 | 31 . . . . Treads . | . . . . . Legs 1258 | 23 279 596 250 110 Wheels . | . . . . . Hover . | . . . . . Flight . | . . . . . Fastest Speed 50 | 50 120 120 120 120 Average Speed 123 | 79 132 125 120 120 Slowest Speed 150 | 120 150 150 120 120 Overloaded Moves . | . . . . . Propulsion Burnouts . | . . . . . Robots Hopped . | . . . . . Cave-ins Triggered . | . . . . . Exploration Rate (%) 46 | 3 42 80 61 46 Regions Visited 4 Branch Regions 3 Pre-discovered Areas 1 | . . 1 . . Known Exits Taken 1 | . . . 1 . Unknown Exits Taken 3 | 1 1 1 . . Scrap Searched 3 | . . 2 . 1 Spaces Dug . | . . . . . Terrain Destroyed . | . . . . . Melee . | . . . . . Projectile . | . . . . . AOE . | . . . . . Terrain Rammed . | . . . . . Walls Destroyed . | . . . . . Machines Disabled . | . . . . . Actions | -11 -10 -10 -10 -9 --------- Run | Scr Mat Min Exi Min Total 1520 | 71 338 711 280 120 Wait 141 | 8 33 78 17 5 Move 1285 | 53 278 595 249 110 Hop . | . . . . . Pick Up 21 | 4 9 5 1 2 Fast Attach 8 | 2 . 1 5 . Attach 6 | 4 1 . . 1 Detach . | . . . . . Swap 10 | . 2 6 2 . Drop 17 | . . 9 6 2 Fire 31 | . 15 16 . . Melee . | . . . . . Ram . | . . . . . Kick . | . . . . . Crush . | . . . . . Escape Stasis . | . . . . . Rewire 1 | . . 1 . . Trap . | . . . . . Miscellaneous . | . . . . . Route ------- -11/Scrapyard -10/Materials (discovered 2 exits: [*Mat] / *Min) -10/Mines (discovered 3 exits: [*Mat x2] / *Exi) -10/Exiles (discovered 2 exits: *Min x2) -9/Mines History --------- Turn | Location | Event 15 | -11/Scrapyard | Discovered new exit (range 15) 62 | -11/Scrapyard | Entered Materials 222 | -10/Materials | Discovered new exit (range 14) 309 | -10/Materials | Build established: Mutant 504 | -10/Materials | Discovered new exit (range 7) 520 | -10/Materials | Entered Mines 525 | -10/Mines | Discovered new exit (range 5) 888 | -10/Mines | Received a Mining Laser from a helpful Derelict 1017 | -10/Mines | Discovered new exit (range 7) 1050 | -10/Mines | Learned Materials emergency access door positions 1085 | -10/Mines | Escorted by a lone wolf Derelict 1105 | -10/Mines | Learned location of Storage (-7) 1140 | -10/Mines | Found a damaged Exp. Sensor Array with a note attached 1145 | -10/Mines | Found Prototype Device 1361 | -10/Mines | A weapon hastily lodged in a ceiling crevice suddenly fell to the ground 1396 | -10/Mines | Deemed a non-threat by the Exiles lab entrance 1397 | -10/Mines | Discovered new exit (range 5) 1410 | -10/Mines | Entered Exiles 1410 | -10/Exiles | Accompanied by 1 ally 1411 | -10/Exiles | Identified exit to Mines 1445 | -10/Exiles | Met 8R-AWN 1466 | -10/Exiles | Met EX-HEX 1516 | -10/Exiles | Met EX-BIN 1533 | -10/Exiles | Aligned with FarCom system 1534 | -10/Exiles | Given EX-Vault access code 1564 | -10/Exiles | Opened EX-Vault 1578 | -10/Exiles | Found Prototype Device 1578 | -10/Exiles | Identified Supersonic Drone Bay 1581 | -10/Exiles | Found Prototype Storage 1581 | -10/Exiles | Identified Superbattery 1590 | -10/Exiles | Found Prototype Special Weapon 1590 | -10/Exiles | Identified Field Lobotomy Kit 1604 | -10/Exiles | Identified Exp. Sensor Array 1634 | -10/Exiles | Warned to stay clear of 0b10 Research branches 1675 | -10/Exiles | Met EX-DEC 1741 | -10/Exiles | Left Exiles lab with Supersonic Drone Bay 1741 | -10/Exiles | Entered Mines 1746 | -9/Mines | Learned location of 1 exit from Materials 1771 | -9/Mines | Assisted by bots powering up and referring to "LRC-V3" 1882 | -9/Mines | Self-destructed Last Messages --------------- 01749_ Found Med. Battery. 01749_ Found Weight Redist. System. 01749_ Found Med. Storage Unit. 01749_ Found 17 Matter. 01750_ Acquired 17 matter. 01751_ Dropped Hammer. 01752_ Acquired Weight Redist. System. 01771_ Trooper 2a: "Hello LRC-V3. What is your command?" 01771_ Mercenary 2a: "Hello LRC-V3. What is your command?" 01771_ Trooper 2b: "Hello LRC-V3. What is your command?" 01796_ Trailblazer released from Supersonic Drone Bay. 01796_ T-07 Excavator is excavating. 01797_ K-01 Serf collects debris. 01799_ Trailblazer destroyed. 01800_ T-07 Excavator is excavating. 01801_ Dropped Supersonic Drone Bay. 01804_ T-07 Excavator is excavating. 01805_ Acquired Supersonic Drone Bay. 01808_ T-07 Excavator is excavating. 01867_ K-01 Serf collects debris. Map ----- +----------------------------------------------------+ | ?????????????# ## #??????????????####??????????? | | ?????????????# ## ######???????????????????????? | | ?????????????# ## #???????????????????????? | | ?????????????# ## #???????????????????????? | | ?????????????# ####### #???????????????????????? | | ?????????????# #???### #???????????????????????? | | ?????????????# #??## #???????????????????????? | | ?????????????# #??# #???????????????????????? | | ?????????????# #??# #???????????????????????? | | ?????????????# #??# #???????????????????????? | | ?????????????# #?## ##???????????????????????? | | ????########## ### ##????????????????????????? | | ##?????????????????????????? | | ## ##?????????????????????????? | | ###########? ##????????????????????????? | | ####?????????????# ##???????????????????????? | | ?????????????????# ##??????????????????????? | | ?????????????????# ####???????????????????? | | ?????????????????# ##??????????????????? | | ????????????###### #??????????????????? | | ???????????## ## #??????????????????? | | ??????????## ##??????????????????? | | ??????????# g ##???????????????????? | | ?????????## ?##gg##????????????????????? | | ?????????#% ### u#?????????????????????? | | ?????? ## ##?#@ #?????????????????????? | | ???# #### #??# #?????????????????????? | | ???## ##??### ##??# #?????????????????????? | | ????# #?????# ##???# ??g??g???????????????? | | ????# #?????# #????#####????????????????????? | | ???# ? g ????? ?????????????????????????????? | | ??# ?g ???? ?????????????????????????????? | | ?# ###?????####????????????????????????????? | | ?# ##????????????????????????????????????????? | | #??????????????????????????????????????????? | | #???????????????????????????????????????????? | | ####????????????????????????????????????????????? | | ????????????????????????????????????????????????? | | ?????????????????????????????????????????????????? | | ?????????????????????????????????????????????????? | | ?????????????????????????????????????????????????? | | ?????????????????????????????????????????????????? | | ?????????????????????????????????????????????????? | | ?????????????????????????????????????????????????? | | ?????????????????????????????????????????????????? | | ?????????????????????????????????????????????????? | | ?????????????????????????????????????????????????? | | ?????????????????????????????????????????????????? | | ?????????????????????????????????????????????????? | | ?????????????????????????????????????????????????? | +----------------------------------------------------+ Best States ------------- Heat Dissipation 35 Energy Generation 14 Energy Capacity 250 Matter Stores 300 Matter Capacity 300 Sight Range 16 Robot Scan Range 30 Terrain Scan Density 10 Evasion (%) 50 Item Schematics ----------------- None Robot Schematics ------------------ None Fabricated ------------ Nothing Alien Tech Used ----------------- None Achievements -------------- None Challenges ------------ None Game ------ Seed HellfireZioniteMallet Manual? 0 Play Time 00:15:27 Cumulative 25.5 hours Start 2021.12.09 @ 16:31:02 End 2021.12.09 @ 17:22:07 Sessions 1 Manual Loads 0 Difficulty Rogue Special Mode None Game No. 78 Rogue 78 Adventurer 0 Explorer 0 Win Type - Total 0 Types 0/0/0/0/0/0/0/0/0 Lore% 28 Gallery% 42 Achievement% 30 Wizard Run 0 Options --------- ASCII 0 Keyboard 0 Movement Arrows Keybinds 0 Fullscreen 1 Font 18/SmallcapsGlow Map View 76x50 Tactical HUD 1 Map Filters NONE Filters NONE Steam 1 RUN: 7e3d18e6-ae1b-4dd8-80f5-dfa57e920fd0